Workbook

Sheet Лист1

Sheet Лист2

Sheet Лист3
F1: Приложение 5
F3: к решению совета депутатов
F4: муниципального образования
F5: Старопольское сельское поселение
F6: Сланцевского муниципального района
F7: Ленинградской области
F8: от 29.03.2013 № 218
A10: РАСПРЕДЕЛЕНИЕ
A11: расходов местного бюджета по ведомственной классификации
A12: расходов бюджетов Российской федерации
A13: СТАРОПОЛЬСКОЕ СЕЛЬСКОЕ ПОСЕЛЕНИЕ СЛАНЦЕВСКОГО МУНИЦИПАЛЬНОГО РАЙОНА
A14: Ленинградской области на 2013 год
A16: тыс. руб.
A17: Наименование | B17: КВСР | C17: КФСР | D17: КЦСР | E17: КВР | F17: Бюджетные ассигнования на год
A20: Администрация Старопольского сельского поселения | B20: 816 | F20: =F21+F57+F69+F85+F149+F156+F194+F179+F52+F188 -> 15554.6
A21: Общегосударственные вопросы | B21: 816 | C21: 0100 | F21: =F22+F28+F35+F38+F42+F45+F48 -> 4902.2
A22: Функционирование законодательных (представительных) органов государственной власти и представительных органов муниципальных образований | B22: 816 | C22: 0103 | F22: 176.2
A23: Местная администрация и ее структурные подразделения | B23: 816 | C23: 0103 | D23: 0020400 | F23: =F24 -> 160.1
A24: Выполнение функций органами местного самоуправления | B24: 816 | C24: 0103 | D24: 0020400 | E24: 500 | F24: 160.1
A25: Межбюджетные трансферты бюджетам муниципальных районов из бюджетов поселений и межбюджетные трансферты бюджетам поселений из бюджетов муниципальных районов на осуществление части полномочий по решению вопросов местного значения в соответствии с заключенными соглашениями | B25: 816 | C25: 0103 | D25: 5210600 | F25: =F26 -> 16.1
A26: Межбюджетные трансферты бюджетам муниципальных районов из бюджетов поселений на осуществление части полномочий по решению вопросов местного значения в части контрольно-счетного органа поселения | B26: 816 | C26: 0103 | D26: 5210602 | F26: =F27 -> 16.1
A27: Иные межбюджетные трансферты | B27: 816 | C27: 0103 | D27: 5210602 | E27: 017 | F27: 16.1
A28: Функционирование Правительства Российской Федерации, высших исполнительных органов государственной власти субъектов Российской Федерации, местных администраций | B28: 816 | C28: 0104 | F28: =F29+F31+F33 -> 4676
A29: Местная администрация и ее структурные подразделения | B29: 816 | C29: 0104 | D29: 0020400 | F29: =F30 -> 3943.8
A30: Выполнение функций органами местного самоуправления | B30: 816 | C30: 0104 | D30: 0020400 | E30: 500 | F30: 3943.8
A31: Глава местной администрации (исполнительно-распорядительного органа муниципального образования) | B31: 816 | C31: 0104 | D31: 0020800 | F31: =F32 -> 722.2
A32: Выполнение функций органами местного самоуправления | B32: 816 | C32: 0104 | D32: 0020800 | E32: 500 | F32: 722.2
A33: Осуществление отдельного государственного полномочия Ленинградсской области в сфере административных правоотношений | B33: 816 | C33: 0104 | D33: 5210223 | F33: =F34 -> 10
A34: Выполнение функций органами местного самоуправления | B34: 816 | C34: 0104 | D34: 5210223 | E34: 500 | F34: 10
A35: Осуществление деятельности финансовых, налоговых и таможенных органов и органов финансового (финансово-бюджетного) надзора | B35: 816 | C35: 0106 | F35: =F36 -> 0
A36: Межбюджетные трансферты бюджетам муниципальных районов из бюджетов поселений и межбюджетные трансферты бюджетам поселений из бюджетов муниципальных районов на осуществление части полномочий по решению вопросов местного значения в соответствии с заключенными соглашениями | B36: 816 | C36: 0106 | D36: 5210600 | F36: =F37 -> 0
A37: Иные межбюджетные трансферты | B37: 816 | C37: 0106 | D37: 5210600 | E37: 017
A38: Обеспечение проведения выборов и референдумов | B38: 816 | C38: 0107 | F38: =F39 -> 0
A39: Проведение выборов и референдумов | B39: 816 | C39: 0107 | D39: 0200000 | F39: =F40 -> 0
A40: Проведение выборов в представительные органы муниципального образования | B40: 816 | C40: 0107 | D40: 0200002 | F40: =F41 -> 0
A41: Выполнение функций органами местного самоуправления | B41: 816 | C41: 0107 | D41: 0200002 | E41: 500
A42: Резервные фонды | B42: 816 | C42: 0111 | F42: =F43 -> 10
A43: Резервные фонды местных администраций по ликвидации чрезвичайных ситуаций | B43: 816 | C43: 0111 | D43: 0700502 | F43: =F44 -> 10
A44: Прочие расходы | B44: 816 | C44: 0111 | D44: 0700502 | E44: 013 | F44: 10
A45: Другие общегосударственные вопросы | B45: 816 | C45: 0113 | F45: =F46+F50+F48 -> 40
A46: Выполнение других обязательств муниципальных образований | B46: 816 | C46: 0113 | D46: 0920300 | F46: =F47 -> 40
A47: Выполнение функций органами местного самоуправления | B47: 816 | C47: 0113 | D47: 0920300 | E47: 500 | F47: 40
A48: Обеспечение мероприятий по реформированию государственной и муниципальной службы | B48: 816 | C48: 0113 | D48: 0928400 | F48: =F49 -> 0
A49: Выполнение функций органами местного самоуправления | B49: 816 | C49: 0113 | D49: 0928400 | E49: 500
A50: Целевые программы муниципальных образований | B50: 816 | C50: 0113 | D50: 7950000 | F50: =F51 -> 0
A51: Выполнение функций органами местного самоуправления | B51: 816 | C51: 0113 | D51: 7950000 | E51: 500
A52: Национальная оборона | B52: 816 | C52: 0200 | F52: =F53 -> 200
A53: Мобилизационная и вневойсковая подготовка | B53: 816 | C53: 0203 | F53: =F54 -> 200
A54: Руководство и управление в сфере установленных функций | B54: 816 | C54: 0203 | D54: 0010000 | F54: =F55 -> 200
A55: Осуществление первичного воинского учета на территориях, где отсутствуют военные комиссариаты | B55: 816 | C55: 0203 | D55: 0013600 | F55: =F56 -> 200
A56: Выполнение функций органами местного самоуправления | B56: 816 | C56: 0203 | D56: 0013600 | E56: 500 | F56: 200
A57: Национальная безопасность и правоохранительная деятельность | B57: 816 | C57: 0300 | F57: =F58+F61 -> 968
A58: Органы внутренних дел | B58: 816 | C58: 0302 | F58: =F59 -> 0
A59: Пособия и компенсации военнослужащим, приравненным к ним лицам, а также уволенным из их числа | B59: 816 | C59: 0302 | D59: 2027600 | F59: =F60 -> 0
A60: Социальные выплаты | B60: 816 | C60: 0302 | D60: 2027600 | E60: 005
A61: Защита населения и территории от чрезвычайных ситуаций природного и техногенного характера, гражданская оборона | B61: 816 | C61: 0309 | F61: =F62+F64+F66 -> 968
A62: Предупреждение и ликвидация последствий чрезвычайных ситуаций и стихийных бедствий природного и техногенного характера | B62: 816 | C62: 0309 | D62: 2180100 | F62: =F63 -> 938
A63: Выполнение функций органами местного самоуправления | B63: 816 | C63: 0309 | D63: 2180100 | E63: 500 | F63: 938
A64: Подготовка населения и организаций к действиям в чрезвычайной ситуации в мирное и военное время | B64: 816 | C64: 0309 | D64: 2190100 | F64: =F65 -> 0
A65: Функционирование органов в сфере национальной безопасности, правоохранительной деятельности и обороны | B65: 816 | C65: 0309 | D65: 2190100 | E65: 500
A66: Целевые программы муниципальных образований | B66: 816 | C66: 0309 | D66: 7950000 | F66: =F68 -> 30
A67: Муниципальная целевая программа "Обеспечение первичных мер пожарной безопасности на территории муниципального образования Старопольское сельское поселение на 2011-2015 гг" | B67: 816 | C67: 0309 | D67: 7951406 | F67: =F68 -> 30
A68: Выполнение функций органами местного самоуправления | B68: 816 | C68: 0309 | D68: 7951406 | E68: 500 | F68: 30
A69: Национальная экономика | B69: 816 | C69: 0400 | F69: =F73+F80+F70 -> 690
A70: Общеэкономические вопросы | B70: 816 | C70: 0401 | F70: =F71 -> 0
A71: Осуществление полномочий Российской Федерации в области содействия занятости населения, включая расходы по осуществлению этих полномочий | B71: 816 | C71: 0401 | D71: 5100200 | F71: =F72 -> 0
A72: Выполнение функций органами местного самоуправления | B72: 816 | C72: 0401 | D72: 5100200 | E72: 500 | F72: 0
A73: Дорожное хозяйство (дорожные фонды) | B73: 816 | C73: 0409 | F73: =F74+F76+F78 -> 450
A74: Ремонт и содержание автомобильных дорог местного значения | B74: 816 | C74: 0409 | D74: 3150110 | F74: =F75 -> 450
A75: Выполнение функций органами местного самоуправления | B75: 816 | C75: 0409 | D75: 3150110 | E75: 500 | F75: 450
A76: Мероприятия по капитальному ремонту и ремонту дворовых территорий многоквартирных домов, проездов к дворовым территориям многоквартирных домов населенных пунктов Ленинградской области | B76: 816 | C76: 0409 | D76: 5224011 | F76: =F77 -> 0
A77: Выполнение функций органами местного самоуправления | B77: 816 | C77: 0409 | D77: 5224011 | E77: 500 | F77: 0
A78: Мероприятия по капитальному ремонту и ремонту автомобильных дорог общего пользования местного значения, в том числе в населенных пунктах Ленинградской области | B78: 816 | C78: 0409 | D78: 5224013 | F78: =F79 -> 0
A79: Выполнение функций органами местного самоуправления | B79: 816 | C79: 0409 | D79: 5224013 | E79: 500 | F79: 0
A80: Другие вопросы в области национальной экономики | B80: 816 | C80: 0412 | F80: =F83+F81 -> 240
A81: Мероприятия в области строительства,архитектуры и градостроительства | B81: 816 | C81: 0412 | D81: 3380000 | F81: =F82 -> 0
A82: Выполнение функций органами местного самоуправления | B82: 816 | C82: 0412 | D82: 3380000 | E82: 500
A83: Мероприятия по землеустройству и землепользованию | B83: 816 | C83: 0412 | D83: 3400300 | F83: =F84 -> 240
A84: Выполнение функций органами местного самоуправления | B84: 816 | C84: 0412 | D84: 3400300 | E84: 500 | F84: 240
A85: Жилищно-коммунальное хозяйство | B85: 816 | C85: 0500 | F85: =F86+F111+F133 -> 1726.3
A86: Жилищное хозяйство | B86: 816 | C86: 0501 | F86: =F87+F94+F96+F105+F108 -> 534
A87: Обеспечение мероприятий по капитальному ремонту многоквартирных домов и переселению граждан из аварийного жилищного фонда | B87: 816 | C87: 0501 | D87: 0980000 | F87: =F88+F91 -> 0
A88: Обеспечение мероприятий по капитальному ремонту многоквартирных домов и переселению граждан из аварийного жилищного фонда за счет средств, поступивших от государственной корпорации Фонд содействия реформированию жилищно-коммунального хозяйства | B88: 816 | C88: 0501 | D88: 0980100 | F88: =F89 -> 0
A89: Обеспечение мероприятий по капитальному ремонту многоквартирных домов за счет средств, поступивших от государственной корпорации Фонд содействия реформированию жилищно-коммунального хозяйства | B89: 816 | C89: 0501 | D89: 0980101 | F89: =F90 -> 0
A90: Субсидии юридическим лицам | B90: 816 | C90: 0501 | D90: 0980101 | E90: 006 | F90: 0
A91: Обеспечение мероприятий по капитальному ремонту многоквартирных домов и переселению граждан из аварийного жилищного фонда за счет средств бюджетов | B91: 816 | C91: 0501 | D91: 0980200 | F91: =F92 -> 0
A92: Обеспечение мероприятий по капитальному ремонту многоквартирных домов за счет средств бюджетов | B92: 816 | C92: 0501 | D92: 0980201 | F92: =F93 -> 0
A93: Субсидии юридическим лицам | B93: 816 | C93: 0501 | D93: 0980201 | E93: 006 | F93: 0
A94: Переселение граждан из жилищного фонда, признанного непригодным для проживания, и (или) жилищного фонда с высоким уровнем износа (более 70 процентов) | B94: 816 | C94: 0501 | D94: 1040400 | F94: =F95 -> 0
A95: Бюджетные инвестиции | B95: 816 | C95: 0501 | D95: 1040400 | E95: 003
A96: Поддержка жилищного хозяйства | B96: 816 | C96: 0501 | D96: 3500000 | F96: =F97+F99 -> 534
A97: Капитальный ремонт государственного жилищного фонда субъектов Российской Федерации и муниципального жилищного фонда | B97: 816 | C97: 0501 | D97: 3500200 | F97: =F98 -> 240
A98: Выполнение функций органами местного самоуправления | B98: 816 | C98: 0501 | D98: 3500200 | E98: 500 | F98: 240
A99: Мероприятия в области жилищного хозяйства | B99: 816 | C99: 0501 | D99: 3500300 | F99: =F100+F103+F101 -> 294
A100: Субсидии юридическим лицам | B100: 816 | C100: 0501 | D100: 3500300 | E100: 006 | F100: 0
A101: Прочие мероприятия в области жилищного хозяйства | B101: 816 | C101: 0501 | D101: 3500301 | F101: =F102 -> 234
A102: Выполнение функций органами местного самоуправления | B102: 816 | C102: 0501 | D102: 3500301 | E102: 500 | F102: 234
A103: Ремонт дворовых территорий, проездов к дворовым территориям многоквартирных домов | B103: 816 | C103: 0501 | D103: 3500302 | F103: =F104 -> 60
A104: Выполнение функций органами местного самоуправления | B104: 816 | C104: 0501 | D104: 3500302 | E104: 500 | F104: 60
A105: Целевые программы муниципальных образований | B105: 816 | C105: 0501 | D105: 7950000 | F105: =F106+F107 -> 0
A106: Бюджетные инвестиции | B106: 816 | C106: 0501 | D106: 7950000 | E106: 003
A107: Выполнение функций органами местного самоуправления | B107: 816 | C107: 0501 | D107: 7950000 | E107: 500
A108: Целевые программы муниципальных образований | B108: 816 | C108: 0501 | D108: 7950000 | F108: =F109 -> 0
A109: Муниципальная адресная программа "Проведение капитального ремонта многоквартирных домов, расположенных на территориии муниципального образования Старопольское сельское поселение в 2012 году" | B109: 816 | C109: 0501 | D109: 7953406 | F109: =F110 -> 0
A110: Выполнение функций органами местного самоуправления | B110: 816 | C110: 0501 | D110: 7953406 | E110: 500 | F110: 0
A111: Коммунальное хозяйство | B111: 816 | C111: 0502 | F111: =F114+F117+F128+F131+F126+F112 -> 161.5
B112: 816 | C112: 0502 | D112: 0700401 | F112: =F113 -> 0
B113: 816 | C113: 0502 | D113: 0700401 | E113: 500 | F113: 0
A114: Бюджетные инвестиции в объекты капитального строительства собственности муниципальных образований | B114: 816 | C114: 0502 | D114: 1020102 | F114: =F115+F116 -> 0
A115: Бюджетные инвестиции | B115: 816 | C115: 0502 | D115: 1020102 | E115: 003
A116: Выполнение функций органами местного самоуправления | B116: 816 | C116: 0502 | D116: 1020102 | E116: 500
A117: Поддержка коммунального хозяйства | B117: 816 | C117: 0502 | D117: 3510000 | F117: =F118+F120+F122 -> 161.5
A118: Компенсация выпадающих доходов организациям, предоставляющим населению услуги теплоснабжения по тарифам, не обеспечивающим возмещение издержек | B118: 816 | C118: 0502 | D118: 3510200 | F118: =F119 -> 0
A119: Субсидии юридическим лицам | B119: 816 | C119: 0502 | D119: 3510200 | E119: 006 | F119: 0
A120: Компенсация выпадающих доходов организациям, предоставляющим населению услуги водоснабжения и водоотведения по тарифам, не обеспечивающим возмещение издержек | B120: 816 | C120: 0502 | D120: 3510300 | F120: =F121 -> 0
A121: Субсидии юридическим лицам | B121: 816 | C121: 0502 | D121: 3510300 | E121: 006 | F121: 0
A122: Мероприятия в области коммунального хозяйства | B122: 816 | C122: 0502 | D122: 3510500 | F122: =F123+F124 -> 161.5
A123: Субсидии юридическим лицам | B123: 816 | C123: 0502 | D123: 3510500 | E123: 006 | F123: 0
A124: Прочие мероприятия в области коммунального хозяйства | B124: 816 | C124: 0502 | D124: 3510505 | F124: =F125 -> 161.5
A125: Выполнение функций органами местного самоуправления | B125: 816 | C125: 0502 | D125: 3510505 | E125: 500 | F125: 161.5
A126: Средства бюджетам муниципальных образований на проведение непредвиденных работ и других неотложных мероприятий, направленных на обеспечение устойчивого функционирования объектов ЖКХ | B126: 816 | C126: 0502 | D126: 5210306 | F126: =F127 -> 0
A127: Субсидии юридическим лицам | B127: 816 | C127: 0502 | D127: 5210306 | E127: 006 | F127: 0
A128: Региональные целевые программы | B128: 816 | C128: 0502 | D128: 5220000 | F128: =F129 -> 0
A129: Региональная целевая программа "Предупредждение ситуаций, связанных с нарушением функционирования объектов жилищно-коммунального хозяйства Ленинградской области, в в 2008-2011 годах" | B129: 816 | C129: 0502 | D129: 5226800 | F129: =F130 -> 0
A130: Бюджетные инвестиции | B130: 816 | C130: 0502 | D130: 5226800 | E130: 003 | F130: =93.7-93.7 -> 0
A131: Целевые программы муниципальных образований | B131: 816 | C131: 0502 | D131: 7950000 | F131: =F132 -> 0
A132: Бюджетные инвестиции | B132: 816 | C132: 0502 | D132: 7950000 | E132: 003
A133: Благоустройство | B133: 816 | C133: 0503 | F133: =F134+F136+F138+F140+F142+F144+F146 -> 1030.8
A134: Резервный фонд Правительства Ленинградской области | B134: 816 | C134: 0503 | D134: 0700401 | F134: =F135 -> 0
A135: Выполнение функций органами местного самоуправления | B135: 816 | C135: 0503 | D135: 0700401 | E135: 500 | F135: 0
A136: Уличное освещение | B136: 816 | C136: 0503 | D136: 6000100 | F136: =F137 -> 520
A137: Выполнение функций органами местного самоуправления | B137: 816 | C137: 0503 | D137: 6000100 | E137: 500 | F137: 520
A138: Строительство и содержание автомобильных дорог и инженерных сооружений на них в границах городских округов и поселений в рамках благоустройства | B138: 816 | C138: 0503 | D138: 6000200 | F138: =F139 -> 0
A139: Выполнение функций органами местного самоуправления | B139: 816 | C139: 0503 | D139: 6000200 | E139: 500 | F139: 0
A140: Озеленение | B140: 816 | C140: 0503 | D140: 6000300 | F140: =F141 -> 70
A141: Выполнение функций органами местного самоуправления | B141: 816 | C141: 0503 | D141: 6000300 | E141: 500 | F141: 70
A142: Организация и содержание мест захоронения | B142: 816 | C142: 0503 | D142: 6000400 | F142: =F143 -> 73
A143: Выполнение функций органами местного самоуправления | B143: 816 | C143: 0503 | D143: 6000400 | E143: 500 | F143: 73
A144: Прочие мероприятия по благоустройству городских округов и поселений | B144: 816 | C144: 0503 | D144: 6000500 | F144: =F145 -> 367.8
A145: Выполнение функций органами местного самоуправления | B145: 816 | C145: 0503 | D145: 6000500 | E145: 500 | F145: 367.8
A146: Целевые программы муниципальных образований | B146: 816 | C146: 0503 | D146: 7950000 | F146: =F147+F148 -> 0
A147: Бюджетные инвестиции | B147: 816 | C147: 0503 | D147: 7950000 | E147: 003
A148: Выполнение функций органами местного самоуправления | B148: 816 | C148: 0503 | D148: 7950000 | E148: 500
A149: Образование | B149: 816 | C149: 0700 | F149: =F150 -> 31.3
A150: Молодежная политика и оздоровление детей | B150: 816 | C150: 0707 | F150: =F151+F154 -> 31.3
A151: Проведение мероприятий для детей и молодежи | B151: 816 | C151: 0707 | D151: 4310100 | F151: =F153 -> 31.3
A152: Организация занятости детей и молодежи | B152: 816 | C152: 0707 | D152: 4310102 | F152: =F153 -> 31.3
A153: Выполнение функций органами местного самоуправления | B153: 816 | C153: 0707 | D153: 4310102 | E153: 500 | F153: 31.3
A154: Целевые программы муниципальных образований | B154: 816 | C154: 0707 | D154: 7950000 | F154: =F155 -> 0
A155: Проведение мероприятий для детей и молодежи | B155: 816 | C155: 0707 | D155: 7950000 | E155: 447
A156: Культура и кинематография | B156: 816 | C156: 0800 | F156: =F157 -> 6917.8
A157: Культура | B157: 816 | C157: 0801 | F157: =F158+F161+F170+F164+F176+F167 -> 6917.8
A158: Дворцы и дома культуры, другие учреждения культуры и средств массовой информации | B158: 816 | C158: 0801 | D158: 4400000 | F158: =F159 -> 5990.6
A159: Обеспечение деятельности подведомственных учреждений | B159: 816 | C159: 0801 | D159: 4409900 | F159: =F160 -> 5990.6
A160: Выполнение функций казенными учреждениями | B160: 816 | C160: 0801 | D160: 4409900 | E160: 001 | F160: 5990.6
A161: Библиотеки | B161: 816 | C161: 0801 | D161: 4420000 | F161: =F162 -> 927.2
A162: Обеспечение деятельности подведомственных учреждений | B162: 816 | C162: 0801 | D162: 4429900 | F162: =F163 -> 927.2
A163: Выполнение функций казенными учреждениями | B163: 816 | C163: 0801 | D163: 4429900 | E163: 001 | F163: 927.2
A164: Мероприятия в сфере культуры, кинематографии и средств массовой информации | B164: 816 | C164: 0801 | D164: 4500000 | F164: =F165 -> 0
A165: Комплектование книжных фондов библиотек муниципальных образований | B165: 816 | C165: 0801 | D165: 4500600 | F165: =F166 -> 0
A166: Выполнение функций бюджетными учреждениями | B166: 816 | C166: 0801 | D166: 4500600 | E166: 001
A167: Межбюджетные трансферты | B167: 816 | C167: 0801 | D167: 5210000 | F167: =F168 -> 0
A168: Обеспечение стимулирующих выплат основному персоналу муниципальных музеев и библиотек | B168: 816 | C168: 0801 | D168: 5210136 | E168: 001 | F168: =F169 -> 0
A169: Выполнение функций бюджетными учреждениями | B169: 816 | C169: 0801 | D169: 5210136 | E169: 001 | F169: 0
A170: Региональные целевые программы | B170: 816 | C170: 0801 | D170: 5220000 | F170: =F173+F174+F171 -> 0
A171: Долгосрочная целевая программа "Развитие информационного общества Ленинградской области" на 2011-2012 годы | B171: 816 | C171: 0801 | D171: 5220400 | F171: =F172 -> 0
A172: Выполнение функций бюджетными учреждениями | B172: 816 | C172: 0801 | D172: 5220400 | E172: 001 | F172: 0
A173: Мероприятия в сфере культуры | B173: 816 | C173: 0801 | D173: 5220000 | E173: 023 | F173: =65+6-71 -> 0
A174: Капитальный ремонт сельских учреждений культуры в рамках реализации региональной целевой программы "Социальное развитие села до 2010 года" | B174: 816 | C174: 0801 | D174: 5224104 | F174: =F175 -> 0
A175: Мероприятия в сфере культуры | B175: 816 | C175: 0801 | D175: 5224104 | E175: 024 | F175: 0
A176: Целевые программы муниципальных образований | B176: 816 | C176: 0801 | D176: 7950000 | F176: =F178 -> 0
A177: Муниципальная целевая программа "Обеспечение первичных мер пожарной безопасности на территории муниципального образования Старопольское сельское поселение на 2011-2015 гг" | B177: 816 | C177: 0801 | D177: 7951406 | F177: =F178 -> 0
A178: Мероприятия в сфере культуры | B178: 816 | C178: 0801 | D178: 7951406 | E178: 024 | F178: 0
A179: Социальная политика | B179: 816 | C179: 1000 | F179: =F180+F183 -> 118.3
A180: Пенсионное обеспечение | B180: 816 | C180: 1001 | F180: =F181 -> 118.3
A181: Доплаты к пенсиям муниципальных служащих | B181: 816 | C181: 1001 | D181: 4910100 | F181: =F182 -> 118.3
A182: Социальные выплаты | B182: 816 | C182: 1001 | D182: 4910100 | E182: 005 | F182: 118.3
A183: Социальное обеспечение населения | B183: 816 | C183: 1003 | F183: =F186+F184 -> 0
A184: Подпрограмма «Обеспечение жильем молодых семей» | B184: 816 | C184: 1003 | D184: 1040200 | F184: =F185 -> 0
A185: Субсидии на обеспечение жильем | B185: 816 | C185: 1003 | D185: 1040200 | E185: 501
A186: Мероприятия в области социальной политики | B186: 816 | C186: 1003 | D186: 5053300 | F186: =F187 -> 0
A187: Социальные выплаты | B187: 816 | C187: 1003 | D187: 5053300 | E187: 005 | F187: 0
A188: Физическая культура и спорт | B188: 816 | C188: 1100 | F188: =F189 -> 0
A189: Массовый спорт | B189: 816 | C189: 1102 | F189: =F190+F192 -> 0
A190: Мероприятия в области здравоохранения, спорта и физической культуры, туризма | B190: 816 | C190: 1102 | D190: 5129700 | F190: =F191 -> 0
A191: Выполнение функций органами местного самоуправления | B191: 816 | C191: 1102 | D191: 5129700 | E191: 500 | F191: 0
A192: Целевые программы муниципальных образований | B192: 816 | C192: 1102 | D192: 7950000 | F192: =F193 -> 0
A193: Мероприятия в области здравоохранения, спорта и физической культуры | B193: 816 | C193: 1102 | D193: 7950000 | E193: 079
A194: Обслуживание государственного и муниципального долга | B194: 816 | C194: 1300 | F194: =F195 -> 0.7
A195: Обслуживание внутреннего государственного и муниципального долга | B195: 816 | C195: 1301 | F195: =F196 -> 0.7
A196: Процентные платежи по муниципальному долгу | B196: 816 | C196: 1301 | D196: 0650300 | F196: =F197 -> 0.7
A197: Прочие расходы | B197: 816 | C197: 1301 | D197: 0650300 | E197: 013 | F197: 0.7
A198: Комитет финансов администрации муниципального образования Сланцевский муниципальный район Ленинградской области | F198: =F200 -> 0
A199: Общегосударственные вопросы | C199: 0100 | F199: =F200 -> 0
A200: Осуществление деятельности финансовых, налоговых и таможенных органов и органов финансового (финансово-бюджетного) надзора | C200: 0106 | F200: =F201 -> 0
A201: Межбюджетные трансферты бюджетам муниципальных районов из бюджетов поселений и межбюджетные трансферты бюджетам поселений из бюджетов муниципальных районов на осуществление части полномочий по решению вопросов местного значения в соответствии с заключенными соглашениями | C201: 0106 | D201: 5210600 | F201: =F202 -> 0
A202: Иные межбюджетные трансферты | C202: 0106 | D202: 5210600 | E202: 017
A203: ИТОГО | F203: =F20 -> 15554.6
